bitfinex/quotes_BTCUSD_20250817
["timestamp","ask_amount","ask_price","bid_price","bid_amount"]
[1755391461724,1.747671,117510.0,117500.0,0.00609]
[1755391462514,1.66284976,117510.0,117500.0,0.00609]
[1755391468788,1.6688293,117510.0,117500.0,0.00609]
[1755391470229,1.66882962,117510.0,117500.0,0.00609]
[1755391473673,1.66882962,117510.0,117500.0,0.00413]
[1755391476019,1.66882962,117510.0,117500.0,0.00619]
[1755391477463,1.53770962,117510.0,117500.0,0.00619]
[1755391477715,1.66264976,117510.0,117500.0,0.00619]
[1755391481925,1.64673898,117510.0,117500.0,0.00619]
[1755391482131,1.66268591,117510.0,117500.0,0.00619]
[1755391482338,1.66268654,117510.0,117500.0,0.00619]
[1755391500481,0.96268654,117510.0,117500.0,0.001]
[1755391500970,0.96268654,117510.0,117500.0,0.00421]
[1755391503406,1.66268654,117510.0,117500.0,0.00421]
[1755391507607,1.66268654,117510.0,117500.0,0.001]
[1755391513936,1.66867068,117510.0,117500.0,0.001]
[1755391515220,1.75349192,117510.0,117500.0,0.001]
[1755391516065,1.66867068,117510.0,117500.0,0.001]
[1755391516278,1.66867042,117510.0,117500.0,0.001]
[1755391517628,1.88781707,117510.0,117500.0,0.001]
[1755391521946,1.42759233,117510.0,117500.0,0.001]
[1755391522160,1.88781948,117510.0,117500.0,0.001]
[1755391522384,1.97264072,117510.0,117500.0,0.001]
[1755391523303,1.99008974,117510.0,117500.0,0.001]
[1755391523512,1.99141974,117510.0,117500.0,0.001]
[1755391523932,2.16700574,117510.0,117500.0,0.001]
[1755391524876,2.16900574,117510.0,117500.0,0.001]
[1755391525120,0.17022725,117490.0,117480.0,0.03297623]
[1755391525330,1.25405914,117490.0,117480.0,0.03550695]
[1755391525516,1.27001103,117490.0,117480.0,0.03550695]
[1755391526838,1.27101103,117490.0,117480.0,0.03650695]
[1755391531780,0.57101103,117490.0,117480.0,0.03650695]
[1755391533477,0.36671971,117490.0,117480.0,0.03650695]
[1755391533692,0.53694696,117490.0,117480.0,0.03650695]
[1755391534912,1.23694696,117490.0,117480.0,0.03650695]
[1755391539562,1.23694777,117490.0,117480.0,0.03650695]
[1755391540604,1.23892777,117490.0,117480.0,0.03650695]
[1755391540808,1.29553853,117490.0,117480.0,0.03650695]
[1755391543146,0.59553853,117490.0,117480.0,0.03650695]
[1755391543445,0.53892777,117490.0,117480.0,0.03650695]
[1755391546191,1.23892777,117490.0,117480.0,0.03650695]
[1755391549573,1.23892777,117490.0,117480.0,0.03446695]
[1755391550579,1.23892777,117490.0,117480.0,0.01921111]
[1755391550785,1.23892777,117490.0,117480.0,0.03123695]
[1755391550996,0.62374901,117490.0,117480.0,0.03123695]
[1755391551197,0.62376051,117490.0,117480.0,0.03123695]
[1755391551571,0.53893927,117490.0,117480.0,0.03123695]
[1755391551976,0.53893927,117490.0,117480.0,0.03444695]
[1755391552185,0.53893927,117490.0,117480.0,0.03654695]
[1755391554080,1.23893927,117490.0,117480.0,0.03654695]
[1755391554882,1.19220623,117490.0,117480.0,0.03654695]
[1755391556890,1.19220623,117490.0,117480.0,0.01921111]
[1755391557123,0.97305958,117490.0,117480.0,0.01921111]
[1755391557338,1.19221116,117490.0,117480.0,0.01921111]
[1755391557620,1.19221078,117490.0,117480.0,0.01921111]
[1755391557976,1.27703202,117490.0,117480.0,0.01921111]
[1755391559880,0.57703202,117490.0,117480.0,0.01921111]
[1755391560433,0.57703202,117490.0,117480.0,0.03123695]
[1755391560647,0.27306344,117490.0,117480.0,0.03444695]
[1755391560854,0.49221009,117490.0,117480.0,0.03654695]
[1755391561336,0.27104344,117490.0,117480.0,0.03654695]
[1755391561847,0.49218009,117490.0,117480.0,0.03654695]
[1755391562039,0.49218009,117490.0,117480.0,0.03444695]
[1755391562309,0.66181538,117490.0,117480.0,0.01921111]
[1755391562939,1.36181538,117490.0,117480.0,0.01921111]
[1755391565911,1.40022382,117490.0,117480.0,0.01921111]
[1755391568071,1.40022037,117490.0,117480.0,0.01921111]
[1755391569726,1.74022037,117490.0,117480.0,0.01921111]
[1755391569950,1.74752965,117490.0,117480.0,0.01921111]
[1755391570155,1.66270841,117490.0,117480.0,0.01921111]
[1755391570357,1.66137841,117490.0,117480.0,0.01921111]
[1755391572671,1.49697706,117490.0,117480.0,0.01921111]
[1755391572871,1.66720431,117490.0,117480.0,0.01921111]
[1755391573516,1.90379998,117490.0,117480.0,0.01921111]
[1755391573724,1.95714785,117490.0,117480.0,0.01921111]
[1755391574068,2.04196909,117490.0,117480.0,0.01921111]
[1755391576698,2.06117629,117490.0,117480.0,0.01921111]
[1755391584709,2.26117629,117490.0,117480.0,0.01921111]
[1755391584921,0.99298481,117480.0,117470.0,0.00876776]
[1755391585133,1.92612084,117480.0,117470.0,0.00881677]
[1755391585335,1.9827316,117480.0,117470.0,0.00881677]
[1755391586110,1.9827316,117480.0,117470.0,0.00981677]
[1755391586659,1.9837316,117480.0,117470.0,0.01181677]
[1755391587469,1.9837316,117480.0,117470.0,0.00870677]
[1755391587998,1.9837316,117480.0,117470.0,0.01181677]
[1755391588404,1.98373794,117480.0,117470.0,0.01181677]
[1755391590730,1.98971845,117480.0,117470.0,0.01181677]
[1755391590932,1.81947671,117480.0,117470.0,0.01181677]
[1755391591174,1.98971845,117480.0,117470.0,0.01181677]
[1755391591366,1.98971783,117480.0,117470.0,0.01181677]
[1755391591667,2.00566668,117480.0,117470.0,0.01181677]
[1755391594563,2.00566726,117480.0,117470.0,0.01181677]
[1755391596602,2.00566726,117480.0,117470.0,0.00870677]
[1755391597283,1.98971863,117480.0,117470.0,0.00870677]
[1755391597484,2.00567024,117480.0,117470.0,0.00870677]
[1755391597903,2.00567024,117480.0,117470.0,0.00770677]
[1755391598115,2.00567024,117480.0,117470.0,0.01094677]
[1755391598497,2.00667024,117480.0,117470.0,0.01094677]
[1755391598703,2.00567024,117480.0,117470.0,0.00894677]
[1755391598943,2.00567114,117480.0,117470.0,0.00894677]
[1755391599368,1.97867039,117480.0,117470.0,0.00894677]
[1755391600016,1.98067039,117480.0,117470.0,0.00994677]
[1755391600484,1.97869039,117480.0,117470.0,0.01201677]
[1755391601214,1.98064039,117480.0,117470.0,0.01201677]
[1755391605467,2.00764114,117480.0,117470.0,0.00994677]
[1755391606197,2.00764114,117480.0,117470.0,0.00670677]
[1755391609504,2.00764114,117480.0,117470.0,0.00994677]
[1755391611463,2.00764114,117480.0,117470.0,0.01201677]
[1755391611464,1.98064039,117480.0,117470.0,0.01201677]
[1755391611667,1.92402963,117480.0,117470.0,0.01201677]
[1755391614703,1.92404639,117480.0,117470.0,0.01201677]
[1755391620384,1.95104714,117480.0,117470.0,0.01201677]
[1755391620723,1.94506583,117480.0,117470.0,0.00670677]
[1755391620943,1.95105476,117480.0,117470.0,0.00670677]
[1755391621143,2.07460595,117480.0,117470.0,0.00670677]
[1755391621341,2.07460595,117480.0,117470.0,0.00994677]
[1755391621698,7.15181272,117480.0,117470.0,0.00670677]
[1755391621973,7.17020891,117480.0,117470.0,0.00670677]
[1755391622136,0.52770525,117470.0,117460.0,0.0002]
[1755391622335,6.11894531,117470.0,117460.0,0.00032532]
[1755391622548,1.28856231,117470.0,117460.0,0.00032532]
[1755391623361,1.98856231,117470.0,117460.0,0.00032532]
[1755391623579,2.00078731,117470.0,117460.0,0.00032532]
[1755391624173,1.78164066,117470.0,117460.0,0.00032532]
[1755391624379,1.78264066,117470.0,117460.0,0.00132532]
[1755391628453,1.76068246,117470.0,117460.0,0.00132532]
[1755391628685,1.78260668,117470.0,117460.0,0.00132532]
[1755391632420,1.65240668,117470.0,117460.0,0.00330532]
[1755391632625,1.71793258,117470.0,117460.0,0.00647532]
[1755391637168,1.01793258,117470.0,117460.0,0.00647532]
[1755391638365,1.04493333,117470.0,117460.0,0.00647532]
[1755391640228,1.04493333,117470.0,117460.0,0.00132532]
[1755391640467,1.74493333,117470.0,117460.0,0.00132532]
[1755391641825,1.74691333,117470.0,117460.0,0.00132532]
[1755391642129,1.96605998,117470.0,117460.0,0.00132532]
[1755391642336,1.74691333,117470.0,117460.0,0.00132532]
[1755391644285,2.4528937,117470.0,117460.0,0.00132532]
[1755391644514,1.7528937,117470.0,117460.0,0.00132532]
[1755391644715,1.53374705,117470.0,117460.0,0.00449532]
[1755391644915,1.7528937,117470.0,117460.0,0.00449532]
[1755391646335,2.4528937,117470.0,117460.0,0.00449532]
[1755391646546,1.7528937,117470.0,117460.0,0.00449532]
[1755391648656,1.77034272,117470.0,117460.0,0.00132532]
[1755391651634,1.98948937,117470.0,117460.0,0.00132532]
[1755391652059,2.00171537,117470.0,117460.0,0.00132532]
[1755391652449,1.65240872,117470.0,117460.0,0.00132532]
[1755391652801,1.78248872,117470.0,117460.0,0.00132532]
[1755391653000,1.77026272,117470.0,117460.0,0.00425532]
[1755391656276,1.75431783,117470.0,117460.0,0.00425532]
[1755391656527,1.77027985,117470.0,117460.0,0.00425532]
[1755391657376,1.60002362,117470.0,117460.0,0.00425532]
[1755391657581,1.9894265,117470.0,117460.0,0.00132532]
[1755391658005,1.77027985,117470.0,117460.0,0.00132532]
[1755391660717,1.76429948,117470.0,117460.0,0.00132532]
[1755391660953,1.7702854,117470.0,117460.0,0.00132532]
[1755391663116,1.42105875,117470.0,117460.0,0.00641532]
[1755391663330,1.68465389,117470.0,117460.0,0.00641532]
[1755391663860,1.67866809,117470.0,117460.0,0.00641532]
[1755391664876,1.68065809,117470.0,117460.0,0.00641532]
[1755391665058,1.70872489,117470.0,117460.0,0.00132532]
[1755391665237,1.79354613,117470.0,117460.0,0.00132532]
[1755391666188,1.57439948,117470.0,117460.0,0.00132532]
[1755391666326,1.79953229,117470.0,117460.0,0.00132532]
[1755391667292,1.4955644,117470.0,117460.0,0.00132532]
[1755391667536,1.71471105,117470.0,117460.0,0.00641532]
[1755391667742,1.71272105,117470.0,117460.0,0.00641532]
[1755391667942,1.68465425,117470.0,117460.0,0.00641532]
[1755391670078,1.55461425,117470.0,117460.0,0.00641532]
[1755391670313,1.44207242,117470.0,117460.0,0.23758781]
[1755391670573,0.88721837,117470.0,117460.0,0.23758781]
[1755391670818,0.83593567,117470.0,117460.0,0.23758781]
[1755391671084,0.65621837,117470.0,117460.0,0.23758781]
[1755391675458,0.64025623,117470.0,117460.0,0.23758781]
[1755391675621,0.65620039,117470.0,117460.0,0.01844116]
[1755391677435,0.65620039,117470.0,117460.0,0.23758781]
[1755391677847,0.31616039,117470.0,117460.0,0.62700519]
[1755391678078,0.52618944,117480.0,117470.0,0.01202584]
[1755391678266,0.67209146,117480.0,117470.0,0.01711584]
[1755391679641,0.65814944,117480.0,117470.0,0.01811584]
[1755391679957,0.65914944,117480.0,117470.0,0.01811584]
[1755391683481,0.87829609,117480.0,117470.0,0.01811584]
[1755391685161,0.88027609,117480.0,117470.0,0.01811584]
[1755391686905,0.88027609,117480.0,117470.0,0.01302584]
[1755391687112,1.09942274,117480.0,117470.0,0.001]
[1755391687318,1.28498135,117480.0,117470.0,0.001]
[1755391687508,1.28631135,117480.0,117470.0,0.001]
[1755391689739,1.28498135,117480.0,117470.0,0.001]
[1755391694857,1.26905803,117480.0,117470.0,0.001]
[1755391695077,1.28499149,117480.0,117470.0,0.001]
[1755391697954,1.28499911,117480.0,117470.0,0.001]
[1755391703018,1.33613911,117480.0,117470.0,0.001]
[1755391703234,1.28499911,117480.0,117470.0,0.001]
[1755391706722,1.28501602,117480.0,117470.0,0.001]
[1755391714237,1.35820896,117480.0,117470.0,0.001]
[1755391714599,6.18859196,117480.0,117470.0,0.001]
[1755391714810,6.19457725,117480.0,117470.0,0.001]
[1755391715853,6.89457725,117480.0,117470.0,0.001]
[1755391718610,6.86823013,117480.0,117470.0,0.001]
[1755391718818,6.88354613,117480.0,117470.0,0.001]
[1755391719924,6.86759843,117480.0,117470.0,0.001]
[1755391720203,6.86626843,117480.0,117470.0,0.001]
[1755391721150,6.86028314,117480.0,117470.0,0.001]
[1755391723391,6.91142314,117480.0,117470.0,0.001]
[1755391727001,6.91140039,117480.0,117470.0,0.001]
[1755391727906,6.91140007,117480.0,117470.0,0.001]
[1755391732301,6.21140007,117480.0,117470.0,0.001]
[1755391735182,6.91140007,117480.0,117470.0,0.001]
[1755391735754,6.47310677,117480.0,117470.0,0.001]
[1755391735953,6.82657883,117480.0,117470.0,0.001]
[1755391738224,6.83255652,117480.0,117470.0,0.001]
[1755391738847,6.82657883,117480.0,117470.0,0.001]
[1755391739059,6.83255694,117480.0,117470.0,0.001]
[1755391740593,6.83255694,117480.0,117470.0,0.00409]
[1755391741003,6.91737818,117480.0,117470.0,0.00409]
[1755391741318,6.91739704,117480.0,117470.0,0.00409]
[1755391741465,6.78743704,117480.0,117470.0,0.00617]
[1755391741676,1.78506458,117480.0,117470.0,0.00617]
[1755391741877,1.33145528,117480.0,117470.0,0.00617]
[1755391742233,1.68032193,117480.0,117470.0,0.00617]
[1755391744124,0.98032193,117480.0,117470.0,0.00617]
[1755391745899,1.19946858,117480.0,117470.0,0.00617]
[1755391746481,1.28428982,117480.0,117470.0,0.00617]
[1755391747121,1.16450443,117480.0,117470.0,0.00617]
[1755391752558,1.16450859,117480.0,117470.0,0.00617]
[1755391759265,0.72621529,117480.0,117470.0,0.00617]
[1755391759450,1.16450859,117480.0,117470.0,0.00617]
[1755391761822,0.72621529,117480.0,117470.0,0.00617]
[1755391762021,1.16450859,117480.0,117470.0,0.00617]
[1755391764233,1.16450258,117480.0,117470.0,0.00617]
[1755391766967,1.14903356,117480.0,117470.0,0.00617]
[1755391775864,1.14904259,117480.0,117470.0,0.00617]
[1755391778812,1.14904312,117480.0,117470.0,0.00617]
[1755391781744,1.14904086,117480.0,117470.0,0.00617]
[1755391784839,1.14904092,117480.0,117470.0,0.00617]
[1755391785089,1.26192896,117480.0,117470.0,0.001]
[1755391785766,1.28536133,117480.0,117470.0,0.001]
[1755391785993,2.01303845,117480.0,117470.0,0.001]
[1755391787173,2.02826445,117480.0,117470.0,0.001]
[1755391787438,2.02693445,117480.0,117470.0,0.001]
[1755391788375,1.87086733,117480.0,117470.0,0.001]
[1755391788621,1.56213403,117480.0,117470.0,0.001]
[1755391788812,2.00042733,117480.0,117470.0,0.004]
[1755391789758,2.00042733,117480.0,117470.0,0.001]
[1755391789964,1.30042733,117480.0,117470.0,0.001]
[1755391790323,1.30042733,117480.0,117470.0,0.004]
[1755391790898,1.30042733,117480.0,117470.0,0.001]
[1755391791719,1.32810445,117480.0,117470.0,0.001]
[1755391793121,2.02810445,117480.0,117470.0,0.001]
[1755391793637,2.07924445,117480.0,117470.0,0.001]
[1755391794582,2.07791445,117480.0,117470.0,0.001]
[1755391796389,2.07790018,117480.0,117470.0,0.001]
[1755391796615,0.96601305,117460.0,117450.0,0.0002]
[1755391796871,1.28292016,117460.0,117450.0,0.00024918]
[1755391797289,1.28292016,117460.0,117450.0,0.00324918]
[1755391797501,1.30328416,117460.0,117450.0,0.00324918]
[1755391797680,2.00328416,117460.0,117450.0,0.00324918]
[1755391797980,2.00328416,117460.0,117450.0,0.00024918]
[1755391798720,1.30328416,117460.0,117450.0,0.00024918]
[1755391799230,1.30628416,117460.0,117450.0,0.00124918]
[1755391799514,1.30828416,117460.0,117450.0,0.00124918]
[1755391799867,1.34700153,117460.0,117450.0,0.00124918]
[1755391800370,1.34505153,117460.0,117450.0,0.00637918]
[1755391800588,1.12590488,117460.0,117450.0,0.00637918]
[1755391800804,1.09783808,117460.0,117450.0,0.00637918]
[1755391801461,1.31698473,117460.0,117450.0,0.00637918]
[1755391801671,0.87866747,117460.0,117450.0,0.00637918]
[1755391801925,2.01696077,117460.0,117450.0,0.00637918]
[1755391802671,1.43169845,117460.0,117450.0,0.00637918]
[1755391802879,1.46589032,117460.0,117450.0,0.00637918]
[1755391803056,1.68503697,117460.0,117450.0,0.00637918]
[1755391804189,1.68503498,117460.0,117450.0,0.00637918]
[1755391804627,1.46588833,117460.0,117450.0,0.00637918]
[1755391804768,1.68503498,117460.0,117450.0,0.00637918]
[1755391804964,1.76985622,117460.0,117450.0,0.00637918]
[1755391805165,1.55070957,117460.0,117450.0,0.00637918]
[1755391805373,1.76985622,117460.0,117450.0,0.00637918]
[1755391805845,1.55070957,117460.0,117450.0,0.00637918]
[1755391806049,1.68503498,117460.0,117450.0,0.00637918]
[1755391806705,1.33636833,117460.0,117450.0,0.00637918]
[1755391806941,1.44552433,117460.0,117450.0,0.01840502]
[1755391807153,1.44552396,117460.0,117450.0,0.01840502]
[1755391807568,1.53034575,117460.0,117450.0,0.01840502]
[1755391807779,1.44352451,117460.0,117450.0,0.01840502]
[1755391807981,1.44052451,117460.0,117450.0,0.01740502]
[1755391808388,1.44152451,117460.0,117450.0,0.01840502]
[1755391808881,1.66067116,117460.0,117450.0,0.01840502]
[1755391809632,1.7454924,117460.0,117450.0,0.01840502]
[1755391810467,1.66067116,117460.0,117450.0,0.01840502]
[1755391812233,1.44152451,117460.0,117450.0,0.01840502]
[1755391812493,1.66067116,117460.0,117450.0,0.01840502]
[1755391812767,1.44152451,117460.0,117450.0,0.01840502]
[1755391813012,1.66067116,117460.0,117450.0,0.01840502]
[1755391823224,0.74152451,117460.0,117450.0,0.01840502]
[1755391823361,0.96067116,117460.0,117450.0,0.01840502]
[1755391823805,0.74152451,117460.0,117450.0,0.01840502]
[1755391823991,0.96067116,117460.0,117450.0,0.01840502]
[1755391824190,0.18719046,117460.0,117450.0,0.23755167]
[1755391824385,0.30071073,117460.0,117450.0,0.23755167]
[1755391824604,0.30071073,117460.0,117450.0,0.01840502]
[1755391824802,0.30071073,117460.0,117450.0,0.23755167]
[1755391828028,0.30071073,117460.0,117450.0,0.40783689]
[1755391828861,0.30067073,117460.0,117450.0,0.40783689]
[1755391833651,0.30067073,117460.0,117450.0,0.18869024]
[1755391833830,0.30067073,117460.0,117450.0,0.40783689]
[1755391837230,0.30067073,117460.0,117450.0,0.18869024]
[1755391837444,0.30067073,117460.0,117450.0,0.40783689]
[1755391840712,0.1304,117460.0,117450.0,0.40783689]
[1755391840925,0.13036,117460.0,117450.0,0.62698354]
[1755391841373,0.001,117460.0,117450.0,0.71179759]
[1755391841555,0.12936,117460.0,117450.0,0.71079759]
[1755391841784,0.17875382,117480.0,117470.0,0.01202584]
[1755391842011,1.00811382,117480.0,117470.0,0.23534069]
[1755391842228,0.87875382,117480.0,117470.0,0.23637249]
[1755391842427,0.30811382,117480.0,117470.0,0.23637249]
[1755391842834,0.46554712,117490.0,117480.0,0.01202584]
[1755391842835,0.17873861,117490.0,117480.0,0.01202584]
[1755391843047,1.35007861,117490.0,117480.0,0.01202584]
[1755391843261,1.35007861,117490.0,117480.0,0.01518584]
[1755391843677,0.88071861,117490.0,117480.0,0.1895956]
[1755391843890,0.99958725,117490.0,117480.0,0.47984982]
[1755391845036,0.29958725,117490.0,117480.0,0.47984982]
[1755391845235,0.29958725,117490.0,117480.0,0.48084982]
[1755391845236,0.30358725,117490.0,117480.0,0.48084982]
[1755391845450,0.30358725,117490.0,117480.0,0.18846758]
[1755391845656,0.30558725,117490.0,117480.0,0.18846758]
[1755391846090,0.29958725,117490.0,117480.0,0.18746758]
[1755391846294,0.30358725,117490.0,117480.0,0.18846758]
[1755391846495,0.30558725,117490.0,117480.0,0.18846758]
[1755391846698,0.17222725,117490.0,117480.0,0.18746758]
[1755391846909,0.30158725,117490.0,117480.0,0.18746758]
[1755391848236,0.30458725,117490.0,117480.0,0.18846758]
[1755391848406,0.30258725,117490.0,117480.0,0.18846758]
[1755391848819,0.30358725,117490.0,117480.0,0.18846758]
[1755391849024,0.30358725,117490.0,117480.0,0.01822584]
[1755391849237,0.30358725,117490.0,117480.0,0.02035386]
[1755391851746,0.30358725,117490.0,117480.0,0.01822584]
[1755391851951,0.30556725,117490.0,117480.0,0.01822584]
[1755391852629,0.30556725,117490.0,117480.0,0.01302584]
[1755391852630,0.59794949,117490.0,117480.0,0.01302584]
[1755391852769,0.59927949,117490.0,117480.0,0.01302584]
[1755391852981,1.05216505,117490.0,117480.0,0.01302584]
[1755391853197,1.03998733,117490.0,117480.0,0.01302584]
[1755391853400,1.00262169,117490.0,117480.0,0.01302584]
[1755391854302,1.70262169,117490.0,117480.0,0.01302584]
[1755391857422,1.6867279,117490.0,117480.0,0.01302584]
[1755391857626,1.70263859,117490.0,117480.0,0.01302584]
[1755391860126,1.70130859,117490.0,117480.0,0.01302584]
[1755391860570,1.40892635,117490.0,117480.0,0.01302584]
[1755391860781,1.23211794,117490.0,117480.0,0.01822584]
[1755391860996,1.00329874,117490.0,117480.0,0.3127361]
[1755391861214,1.00329874,117490.0,117480.0,0.06631223]
[1755391861419,1.00329874,117490.0,117480.0,0.06844025]
[1755391862239,1.00329874,117490.0,117480.0,0.02035386]
[1755391863485,0.30329874,117490.0,117480.0,0.02035386]
[1755391864497,0.17397874,117490.0,117480.0,0.1905956]
[1755391864709,0.30329874,117490.0,117480.0,0.18846758]
[1755391865330,0.30329874,117490.0,117480.0,0.48084982]
[1755391865540,0.30329874,117490.0,117480.0,0.54596038]
[1755391865742,0.30329874,117490.0,117480.0,0.25357814]
[1755391866306,0.13307149,117490.0,117480.0,0.54596038]
[1755391866716,0.00375149,117490.0,117480.0,0.54596038]
[1755391873996,0.00375149,117490.0,117480.0,0.67524038]
[1755391877131,0.00375149,117490.0,117480.0,0.76005443]
[1755391879349,0.00375149,117490.0,117480.0,1.05243667]
[1755391879593,0.00375149,117490.0,117480.0,0.76005443]
[1755391880028,0.00375149,117490.0,117480.0,0.78563343]
[1755391880468,0.00275149,117490.0,117480.0,0.78563343]
[1755391880903,0.13778991,117510.0,117500.0,0.1822386]
[1755391881124,0.17870819,117510.0,117500.0,0.21953394]
[1755391881583,0.17870819,117510.0,117500.0,0.22268394]
[1755391882221,0.17919902,117510.0,117500.0,0.22268394]
[1755391882427,0.18319902,117510.0,117500.0,0.22368394]
[1755391882981,0.00449083,117510.0,117500.0,0.51606618]
[1755391883180,0.00449083,117510.0,117500.0,0.22368394]
[1755391883610,0.00449083,117510.0,117500.0,0.64534618]
[1755391883844,0.00449083,117510.0,117500.0,0.35296394]
[1755391885543,0.00449083,117510.0,117500.0,0.22368394]
[1755391886391,0.17468911,117510.0,117500.0,0.22368394]
[1755391887566,0.00449083,117510.0,117500.0,0.22368394]
[1755391889270,0.17468911,117510.0,117500.0,0.22368394]
[1755391891281,0.00449083,117510.0,117500.0,0.22368394]
[1755391892836,0.00449083,117510.0,117500.0,0.51606618]
[1755391896414,0.00449083,117510.0,117500.0,0.22368394]
[1755391898102,0.17468911,117510.0,117500.0,0.22368394]
[1755391900774,0.17468911,117510.0,117500.0,0.44285111]
[1755391902096,0.39583628,117510.0,117500.0,0.21848394]
[1755391902543,0.39583628,117510.0,117500.0,0.04827118]
[1755391902771,0.17666911,117510.0,117500.0,0.04827118]
[1755391903047,0.17666911,117510.0,117500.0,0.05147118]
[1755391903267,0.39583628,117510.0,117500.0,0.05147118]
[1755391904873,0.39583628,117510.0,117500.0,0.04827118]
[1755391905075,0.39583628,117510.0,117500.0,0.01302584]
[1755391905325,0.39716628,117510.0,117500.0,0.01302584]
[1755391905698,0.39583628,117510.0,117500.0,0.01302584]
[1755391906763,0.46896297,117510.0,117500.0,0.01302584]
[1755391911889,0.17468911,117510.0,117500.0,0.01831584]
[1755391912092,0.17468911,117510.0,117500.0,0.4996767]
[1755391912721,0.00449083,117510.0,117500.0,0.20738284]
[1755391912969,0.00449083,117510.0,117500.0,0.61006246]
[1755391913374,0.00449083,117510.0,117500.0,0.3177686]
[1755391914697,0.17468911,117510.0,117500.0,0.3177686]
[1755391914992,0.17468911,117510.0,117500.0,0.1885286]
[1755391918376,0.00449083,117510.0,117500.0,0.1885286]
[1755391918577,0.00449083,117510.0,117500.0,0.56140917]
[1755391919416,0.00449083,117510.0,117500.0,0.26911531]
[1755391919932,0.17468911,117510.0,117500.0,0.26911531]
[1755391922845,0.17019828,117510.0,117500.0,0.26911531]
[1755391924167,0.29946503,117520.0,117500.0,0.26911531]
[1755391924343,0.59184243,117520.0,117500.0,0.26911531]
[1755391925518,0.59384243,117520.0,117500.0,0.26911531]
[1755391925720,0.17019828,117510.0,117500.0,0.26911531]
[1755391926148,0.17021276,117500.0,117490.0,0.30257654]
[1755391926370,0.30143276,117500.0,117490.0,0.08796405]
[1755391926581,0.59372662,117500.0,117490.0,0.01202584]
[1755391927231,0.30143276,117500.0,117490.0,0.01202584]
[1755391927695,0.59472662,117500.0,117490.0,0.01402584]
[1755391928197,0.59472662,117500.0,117490.0,0.01502584]
[1755391928411,0.30243276,117500.0,117490.0,0.01502584]
[1755391935110,0.30243276,117500.0,117490.0,0.05729986]
[1755391935339,0.30243276,117500.0,117490.0,0.01817584]
[1755391937788,0.30243276,117500.0,117490.0,0.18840309]
[1755391938000,0.30243276,117500.0,117490.0,0.19055309]
[1755391938870,0.30243276,117500.0,117490.0,0.02032584]
[1755391941685,0.30243276,117500.0,117490.0,0.01817584]
[1755391941943,0.59472662,117500.0,117490.0,0.01502584]
[1755391942153,0.59602662,117500.0,117490.0,0.01502584]
[1755391945112,0.59602662,117500.0,117490.0,0.003]
[1755391947173,0.59602662,117500.0,117490.0,0.01502584]
[1755391947574,0.59602662,117500.0,117490.0,0.003]
[1755391947995,0.59602662,117500.0,117490.0,0.01502584]
[1755391948626,0.59602662,117500.0,117490.0,0.003]
[1755391948829,0.59602662,117500.0,117490.0,0.01502584]
[1755391949035,0.93602662,117500.0,117490.0,0.003]
[1755391950177,0.93602662,117500.0,117490.0,0.01502584]
[1755391951279,0.93472662,117500.0,117490.0,0.01502584]
[1755391952603,0.93472662,117500.0,117490.0,0.003]
[1755391952960,0.93472662,117500.0,117490.0,0.01502584]
[1755391953164,0.93472662,117500.0,117490.0,0.003]
[1755391953422,1.01954067,117500.0,117490.0,0.01502584]
[1755391953616,1.02084067,117500.0,117490.0,0.01502584]
[1755391954024,1.01954067,117500.0,117490.0,0.01502584]
[1755391955429,1.03548039,117500.0,117490.0,0.01502584]
[1755391956277,1.01954067,117500.0,117490.0,0.01502584]
[1755391956505,1.03548076,117500.0,117490.0,0.01502584]
[1755391956781,1.18178012,117500.0,117490.0,0.01502584]
[1755391957492,1.16584003,117500.0,117490.0,0.01502584]
[1755391962221,1.18177951,117500.0,117490.0,0.01502584]
[1755391963722,1.18178065,117500.0,117490.0,0.01502584]
[1755391964233,1.18308065,117500.0,117490.0,0.003]
[1755391964438,1.4871985,117500.0,117490.0,0.003]
[1755391964649,1.18308065,117500.0,117490.0,0.003]
[1755391966205,1.18308065,117500.0,117490.0,0.00293514]
[1755391966505,1.20052967,117500.0,117490.0,0.00293514]
[1755391967425,1.90052967,117500.0,117490.0,0.00293514]
[1755391968971,1.88308065,117500.0,117490.0,1e-08]
[1755391969159,1.96790189,117500.0,117490.0,1e-08]
[1755391969372,0.51022725,117490.0,117480.0,0.00929291]
[1755391969569,0.94558791,117490.0,117480.0,0.00929291]
[1755391970251,0.94558791,117490.0,117480.0,0.01242291]
[1755391970407,0.96153635,117490.0,117480.0,0.01242291]
[1755391970638,1.01814711,117490.0,117480.0,0.01242291]
[1755391970832,1.01914711,117490.0,117480.0,0.01442291]
[1755391971910,0.7998505,117490.0,117480.0,0.01442291]
[1755391972110,1.01914711,117490.0,117480.0,0.01542291]
[1755391972704,1.01814711,117490.0,117480.0,0.01342291]
[1755391972924,1.02014711,117490.0,117480.0,0.00513]
[1755391973132,1.02014711,117490.0,117480.0,0.001]
[1755391973580,1.02114711,117490.0,117480.0,0.002]
[1755391973790,1.01914711,117490.0,117480.0,0.001]
[1755391974026,1.25719274,117490.0,117480.0,0.001]
[1755391974262,1.28503651,117490.0,117480.0,0.001]
[1755391974497,0.17024174,117480.0,117470.0,0.00929291]
[1755391974729,0.90971025,117480.0,117470.0,0.00929291]
[1755391975112,0.92565511,117480.0,117470.0,0.00929291]
[1755391975315,0.92565534,117480.0,117470.0,0.00929291]
[1755391975688,0.92665534,117480.0,117470.0,0.00978374]
[1755391976817,0.92965534,117480.0,117470.0,0.01078374]
[1755391980939,0.92964872,117480.0,117470.0,0.01078374]
[1755391981167,0.84482748,117480.0,117470.0,0.01078374]
[1755391981883,0.40623426,117480.0,117470.0,0.01078374]
[1755391982031,0.84482748,117480.0,117470.0,0.01078374]
[1755391982450,0.84482151,117480.0,117470.0,0.01078374]
[1755391982659,0.92964275,117480.0,117470.0,0.01078374]
[1755391985070,0.91371025,117480.0,117470.0,0.01078374]
[1755391988577,0.91371025,117480.0,117470.0,0.01393374]
[1755391990242,0.91371025,117480.0,117470.0,0.01608374]
[1755391990451,0.6075924,117480.0,117470.0,0.01608374]
[1755391991083,0.82888901,117480.0,117470.0,0.01608374]
[1755391994319,0.84483329,117480.0,117470.0,0.01608374]
[1755391995740,0.84484329,117480.0,117470.0,0.01608374]
[1755392000115,0.84283329,117480.0,117470.0,0.01608374]
[1755392000940,0.84483329,117480.0,117470.0,0.01608374]
[1755392005928,0.84283329,117480.0,117470.0,0.01608374]
[1755392006475,0.84482329,117480.0,117470.0,0.01608374]
[1755392009565,0.84483699,117480.0,117470.0,0.01608374]
[1755392011409,0.30344174,117480.0,117470.0,0.23750855]
[1755392011604,0.30344174,117480.0,117470.0,0.01608374]
[1755392011814,0.52273835,117480.0,117470.0,0.01608374]
[1755392015250,0.74203496,117480.0,117470.0,0.01608374]
[1755392016521,0.75798775,117480.0,117470.0,0.01608374]